bitfinex/quotes_ETHUSD_20241104
["timestamp","ask_amount","ask_price","bid_price","bid_amount"]
[1730711052207,4.06313,2461.2,2460.7,8.06387]
[1730711052406,4.06313,2461.2,2460.8,0.5495]
[1730711052606,4.06313,2461.2,2460.8,4.61311]
[1730711053207,4.06322,2461.1,2460.8,0.5495]
[1730711053550,0.808,2461.1,2460.8,0.5495]
[1730711053721,4.0633,2461.1,2460.8,0.5495]
[1730711053909,4.06341,2461.0,2460.8,0.5495]
[1730711054913,4.06341,2461.0,2460.6,0.5495]
[1730711055111,4.06341,2461.0,2460.6,1.05328983]
[1730711055517,4.06357,2460.9,2460.6,1.05328983]
[1730711055841,4.06395,2460.7,2460.4,0.97371828]
[1730711056007,4.06382,2460.8,2460.4,0.97371828]
[1730711056207,8.12764,2460.8,2460.4,4.69514683]
[1730711056515,4.06405,2460.6,2460.4,0.5495]
[1730711056711,4.06392,2460.7,2460.4,0.5495]
[1730711057037,4.06392,2460.7,2460.4,1.417371]
[1730711057363,4.06392,2460.7,2460.4,0.5495]
[1730711057953,4.06398,2460.7,2460.4,0.5495]
[1730711058658,4.06371,2460.8,2460.2,4.06467]
[1730711058659,4.06417,2460.6,2460.2,0.5495]
[1730711058836,8.12868,2460.5,2460.2,0.5495]
[1730711059309,8.12868,2460.5,2460.2,1.24357007]
[1730711059755,4.06432,2460.5,2460.2,1.24357007]
[1730711059925,4.06405,2460.6,2460.2,5.30827007]
[1730711060110,4.06405,2460.6,2460.3,0.70199471]
[1730711060765,4.06405,2460.6,2460.2,5.30827007]
[1730711060957,4.06398,2460.7,2460.3,0.62390489]
[1730711061109,4.06398,2460.7,2460.3,5.47185271]
[1730711061313,4.06405,2460.6,2460.3,2.37968057]
[1730711061529,4.06405,2460.6,2460.3,1.67743293]
[1730711061728,4.06423,2460.5,2460.3,1.67743293]
[1730711061934,4.06423,2460.5,2460.3,1.05352804]
[1730711062138,4.06437,2460.4,2460.3,1.05352804]
[1730711063123,4.06405,2460.6,2460.3,1.05352804]
[1730711063321,4.06428,2460.5,2460.3,1.05352804]
[1730711064355,0.762,2460.8,2460.4,0.5495]
[1730711064356,4.06374,2460.8,2460.4,0.5495]
[1730711064537,4.06395,2460.7,2460.5,0.20907895]
[1730711065254,4.06378,2460.8,2460.5,0.20907895]
[1730711065464,4.82552,2461.0,2460.5,0.20907895]
[1730711065775,4.06358,2460.9,2460.5,0.20907895]
[1730711065960,4.06358,2460.9,2460.5,4.27327895]
[1730711066128,4.06372,2460.8,2460.6,0.8887139]
[1730711066551,4.06361,2460.9,2460.6,0.8887139]
[1730711067459,4.06373,2460.8,2460.6,0.8887139]
[1730711068193,4.06388,2460.7,2460.6,0.8887139]
[1730711068353,4.06388,2460.7,2460.5,1.26379552]
[1730711068947,4.87794,2460.6,2460.5,1.05471657]
[1730711070885,4.06404,2460.6,2460.5,1.05471657]
[1730711072151,4.06436,2460.5,2460.1,0.5495]
[1730711072398,4.06436,2460.5,2460.1,1.25262162]
[1730711072551,4.06436,2460.5,2460.2,0.53175416]
[1730711073185,4.06438,2460.4,2460.2,0.53175416]
[1730711073968,4.06454,2460.3,2460.2,0.53175416]
[1730711074281,4.06479,2460.2,2459.9,0.5495]
[1730711074493,4.06511,2460.0,2459.8,1.90488204]
[1730711074664,4.06511,2460.0,2459.8,1.05449383]
[1730711074875,4.06511,2460.0,2459.8,1.75754694]
[1730711075390,4.06511,2460.0,2459.8,0.70305311]
[1730711075689,4.0652,2459.9,2459.7,0.85038821]
[1730711077486,0.7807,2460.0,2459.7,0.85038821]
[1730711077758,4.06532,2459.9,2459.7,1.52449295]
[1730711079002,4.06537,2459.8,2459.7,0.85038821]
[1730711080500,4.06567,2459.7,2459.2,4.61579]
[1730711080824,4.06567,2459.7,2459.2,3.5495]
[1730711080954,4.06573,2459.6,2459.2,3.5495]
[1730711081155,4.06544,2459.8,2459.4,4.06603]
[1730711081358,4.06544,2459.8,2459.3,0.76159]
[1730711081359,4.06544,2459.8,2459.3,4.82776]
[1730711082120,4.06544,2459.8,2459.4,4.06602]
[1730711082256,4.06544,2459.8,2459.3,0.76159]
[1730711082452,4.06564,2459.7,2459.3,0.76159]
[1730711082656,4.06564,2459.7,2459.3,4.82777]
[1730711082894,4.06564,2459.7,2459.4,0.81564016]
[1730711085295,4.06533,2459.9,2459.4,0.81564016]
[1730711085296,4.06537,2459.8,2459.4,0.81564016]
[1730711085519,0.7807,2460.0,2459.6,0.5495]
[1730711085799,4.84576,2460.0,2459.7,0.9873253]
[1730711086066,4.84576,2460.0,2459.6,0.5495]
[1730711086264,4.06522,2459.9,2459.6,1.31109]
[1730711088268,0.7807,2460.0,2459.6,1.31109]
[1730711088434,0.7807,2460.0,2459.6,5.37678]
[1730711088435,4.06504,2460.0,2459.6,5.37678]
[1730711089065,8.12989,2460.1,2459.6,5.37678]
[1730711089264,4.06504,2460.0,2459.7,0.537678]
[1730711090978,4.06491,2460.1,2459.7,4.603128]
[1730711091976,0.7603,2460.4,2459.7,4.603128]
[1730711091977,4.06509,2460.0,2459.7,0.537678]
[1730711092277,4.06509,2460.0,2459.6,4.41991323]
[1730711092278,4.06524,2459.9,2459.6,0.5495]
[1730711092462,4.06548,2459.8,2459.6,0.5495]
[1730711095081,4.06504,2460.0,2459.6,4.61512]
[1730711095263,4.06504,2460.0,2459.6,0.5495]
[1730711095452,4.06538,2459.8,2459.6,1.09606682]
[1730711095636,8.13058,2459.9,2459.6,1.09606682]
[1730711096133,4.06522,2459.9,2459.6,1.09606682]
[1730711096781,4.06539,2459.8,2459.6,1.09606682]
[1730711097135,4.06522,2459.9,2459.6,1.09606682]
[1730711097475,4.06522,2459.9,2459.6,2.15058223]
[1730711097633,4.06553,2459.7,2459.4,1.39988821]
[1730711097834,4.06586,2459.5,2459.3,0.42402305]
[1730711098035,0.7992,2459.8,2459.3,0.70308873]
[1730711098371,4.06571,2459.6,2459.3,1.75772182]
[1730711098565,4.06566,2459.7,2459.3,1.75772182]
[1730711098764,4.06566,2459.7,2459.3,2.90765674]
[1730711099076,4.06586,2459.6,2459.3,2.20456801]
[1730711099252,4.06588,2459.5,2459.3,2.20456801]
[1730711099729,8.13186,2459.5,2459.3,2.20456801]
[1730711099935,4.06603,2459.4,2459.1,1.39988821]
[1730711100179,4.06603,2459.4,2459.1,3.15827014]
[1730711100388,4.06603,2459.4,2459.2,0.70335024]
[1730711100680,4.89233,2459.4,2459.2,0.70335024]
[1730711100974,4.06603,2459.4,2459.2,0.70335024]
[1730711103075,4.06619,2459.3,2459.0,0.85038821]
[1730711103383,4.06619,2459.3,2458.9,1.27540922]
[1730711103384,4.86955,2459.2,2458.9,1.90573202]
[1730711103598,4.86955,2459.2,2459.0,0.70353273]
[1730711103892,4.86955,2459.2,2458.9,1.90573202]
[1730711104037,0.8031,2459.2,2458.9,2.60926368]
[1730711104234,4.85127,2459.4,2458.9,6.75736153]
[1730711104438,4.85127,2459.4,2459.0,5.82549547]
[1730711104679,4.85127,2459.4,2459.1,0.70353166]
[1730711104879,4.06581,2459.6,2459.2,0.5495]
[1730711105120,4.06581,2459.6,2459.2,8.68213]
[1730711105292,0.7852,2460.0,2459.6,0.5495]
[1730711105491,8.13,2460.1,2459.6,4.6151]
[1730711105718,4.06498,2460.1,2459.7,4.06552]
[1730711106880,8.13001,2460.1,2459.6,4.61518]
[1730711107120,4.06552,2459.8,2459.4,1.39988821]
[1730711107421,4.06552,2459.8,2459.4,1.60467209]
[1730711107422,0.7521,2459.8,2459.4,1.60467209]
[1730711107623,4.06566,2459.7,2459.4,0.5495]
[1730711108481,4.81758,2459.8,2459.4,0.5495]
[1730711108688,4.06578,2459.6,2459.3,1.05529687]
[1730711108992,4.06578,2459.6,2459.3,1.75891131]
[1730711109216,4.06555,2459.7,2459.3,5.82509131]
[1730711109419,4.06555,2459.7,2459.4,0.70361444]
[1730711109789,4.06555,2459.7,2459.3,4.06618]
[1730711110226,4.06555,2459.7,2459.4,0.70366781]
[1730711110820,4.81757,2459.8,2459.4,0.70366781]
[1730711111032,4.06553,2459.7,2459.3,1.05567256]
[1730711111326,4.06577,2459.6,2459.3,1.75945507]
[1730711112229,4.06557,2459.7,2459.3,5.82558507]
[1730711112432,4.06557,2459.7,2459.4,1.75945507]
[1730711112611,4.06557,2459.7,2459.4,1.05588706]
[1730711112929,4.06557,2459.7,2459.4,1.75981134]
[1730711114133,4.06529,2459.9,2459.5,4.06579]
[1730711114303,4.06529,2459.9,2459.6,0.5495]
[1730711114520,4.85157,2460.0,2459.6,1.25384367]
[1730711114834,4.85157,2460.0,2459.6,0.5495]
[1730711115193,4.85157,2460.0,2459.6,1.60600433]
[1730711115194,4.06527,2459.9,2459.6,1.60600433]
[1730711115393,4.06527,2459.9,2459.5,1.08233561]
[1730711115394,4.06527,2459.9,2459.5,2.13883994]
[1730711115652,4.06527,2459.9,2459.6,0.70449283]
[1730711115810,4.06527,2459.9,2459.6,1.76099716]
[1730711117716,4.84798,2460.2,2459.7,4.6149]
[1730711117915,4.06489,2460.1,2459.8,1.7617549]
[1730711118240,4.06489,2460.1,2459.7,4.6149]
[1730711118404,4.06489,2460.1,2459.8,1.76239772]
[1730711119416,4.06489,2460.1,2459.9,0.70484339]
[1730711120509,4.06494,2460.1,2459.9,0.70484339]
[1730711121354,4.06494,2460.1,2459.9,1.05755433]
[1730711121509,4.06494,2460.1,2460.0,0.70549222]
[1730711121910,4.06494,2460.1,2459.8,1.90864911]
[1730711122223,4.06519,2460.0,2459.9,0.70550754]
[1730711122803,4.06519,2460.0,2459.9,1.76376844]
[1730711123478,4.06519,2460.0,2459.9,0.70550754]
[1730711124649,8.12994,2460.1,2459.9,1.76376844]
[1730711124859,4.06494,2460.1,2460.0,0.70550754]
[1730711125510,4.06494,2460.1,2459.8,1.90864911]
[1730711125712,4.06494,2460.1,2459.8,0.70545978]
[1730711125713,4.88824,2460.0,2459.8,0.70545978]
[1730711125954,4.88824,2460.0,2459.6,1.90864911]
[1730711125955,0.8232,2460.0,2459.6,1.90864911]
[1730711126125,4.88838,2460.0,2459.5,1.90870866]
[1730711126336,4.06548,2459.8,2459.6,0.7055556]
[1730711126652,4.06548,2459.8,2459.5,1.90871381]
[1730711126653,8.13098,2459.8,2459.5,1.90871381]
[1730711126854,8.13098,2459.8,2459.6,1.76387668]
[1730711127154,4.06548,2459.8,2459.7,0.70555108]
[1730711128258,4.06553,2459.7,2459.6,1.0583256]
[1730711128578,4.06553,2459.7,2459.6,1.76390176]
[1730711128940,4.06548,2459.8,2459.6,1.76386952]
[1730711129143,4.06548,2459.8,2459.7,0.70554781]
[1730711131450,4.06548,2459.8,2459.7,0.70555472]
[1730711132367,4.18382983,2459.8,2459.7,0.70555472]
[1730711132578,0.11834983,2459.8,2459.7,0.70555472]
[1730711132733,0.11834983,2459.8,2459.7,2.61427501]
[1730711133081,0.11834983,2459.8,2459.7,0.70555472]
[1730711133264,0.11834983,2459.8,2459.7,1.7638868]
[1730711133584,4.06527,2459.9,2459.7,1.7638868]
[1730711133783,4.06527,2459.9,2459.8,0.70555472]
[1730711134140,4.18366731,2459.9,2459.7,1.05833208]
[1730711134340,4.18366731,2459.9,2459.6,1.90872029]
[1730711134645,4.18366731,2459.9,2459.7,1.76386119]
[1730711134863,4.18366731,2459.9,2459.8,0.70552911]
[1730711135030,4.18366731,2459.9,2459.7,1.05833208]
[1730711135233,0.11839731,2459.9,2459.8,0.70552721]
[1730711135434,0.11839731,2459.9,2459.8,2.48680204]
[1730711135677,4.06512,2460.0,2459.8,2.48680204]
[1730711135880,4.18360007,2459.9,2459.7,1.39988821]
[1730711136048,8.24897007,2459.9,2459.8,0.70552044]
[1730711136545,4.18360007,2459.9,2459.8,0.70552044]
[1730711137680,0.11840007,2459.9,2459.8,0.70552044]
[1730711137838,4.06494,2460.1,2459.8,2.61418931]
[1730711138140,4.06494,2460.1,2459.9,0.70552044]
[1730711138141,0.1184372,2460.0,2459.9,0.70552044]
[1730711138336,0.1184372,2460.0,2459.9,1.37349237]
[1730711138586,4.0648,2460.2,2459.9,1.37349237]
[1730711138587,4.06414,2460.6,2460.2,4.06468]
[1730711138745,4.85927,2460.7,2460.3,6.37751031]
[1730711138936,4.06397,2460.7,2460.3,0.5495]
[1730711139169,8.12763,2460.8,2460.4,4.76969954]
[1730711139474,4.06392,2460.7,2460.3,4.61401]
[1730711139688,4.06381,2460.8,2460.4,1.7626759]
[1730711139979,4.88191,2461.0,2460.3,1.45875823]
[1730711139980,8.12827,2460.6,2460.3,1.45875823]
[1730711140145,4.86707,2460.6,2460.3,0.5495]
[1730711140343,4.06387,2460.8,2460.3,0.5495]
[1730711140344,4.06389,2460.7,2460.3,0.5495]
[1730711140654,4.06389,2460.7,2460.3,7.22961722]
[1730711140870,4.06389,2460.7,2460.4,0.7049051]
[1730711141183,4.06421,2460.5,2460.4,1.72856895]
[1730711141353,4.06421,2460.5,2460.3,0.5495]
[1730711141979,4.06408,2460.6,2460.3,0.5495]
[1730711142151,4.0638,2460.8,2460.3,6.37599971]
[1730711142503,4.0638,2460.8,2460.4,4.76914683]
[1730711142637,4.0638,2460.8,2460.4,4.06436]
[1730711142981,4.0638,2460.8,2460.5,0.867831]
[1730711143150,4.06362,2460.9,2460.5,4.932041]
[1730711143475,4.83107,2461.0,2460.5,0.867831]
[1730711143476,4.06381,2460.8,2460.5,0.867831]
[1730711145591,4.06371,2460.9,2460.6,0.5495]
[1730711145754,4.06379,2460.8,2460.6,0.5495]
[1730711145958,4.06379,2460.8,2460.7,0.38008119]
[1730711147185,4.84559,2460.8,2460.7,0.38008119]
[1730711148467,4.96243438,2460.8,2460.7,0.38008119]
[1730711148644,5.86504882,2460.8,2460.7,0.38008119]
[1730711148844,1.80125882,2460.8,2460.2,1.60519791]
[1730711149096,1.80125882,2460.8,2460.3,0.37990242]
[1730711149097,4.06432,2460.5,2460.3,0.37990242]
[1730711149249,4.06432,2460.5,2460.4,0.37990242]
[1730711149589,4.18077181,2460.5,2460.4,0.37990242]
[1730711150496,5.00887181,2460.5,2460.4,0.37990242]
[1730711152203,5.00887181,2460.5,2460.0,1.05588259]
[1730711152204,4.06444,2460.4,2460.0,1.05588259]
[1730711152363,4.06455,2460.3,2459.9,0.5495]
[1730711152691,4.06481,2460.2,2460.0,0.3798637]
[1730711152865,4.18089608,2460.2,2460.1,0.3798637]
[1730711155676,4.18089608,2460.2,2459.9,1.6055228]
[1730711156094,4.18089608,2460.2,2460.0,0.37989743]
[1730711156294,4.18089608,2460.2,2460.1,0.37989743]
[1730711159713,4.18089608,2460.2,2459.9,1.05620009]
[1730711159873,4.83703,2460.1,2459.9,0.70417372]
[1730711160076,4.83703,2460.1,2459.7,0.5495]
[1730711160077,4.17949367,2460.0,2459.7,0.5495]
[1730711160387,8.24466367,2460.0,2459.8,0.38017289]
[1730711160583,8.24466367,2460.0,2459.9,0.38017289]
[1730711160910,4.17949367,2460.0,2459.9,0.38017289]
[1730711162316,0.11445367,2460.0,2459.9,0.38017289]
[1730711162813,4.17949367,2460.0,2459.9,0.38017289]
[1730711163703,0.11445367,2460.0,2459.9,0.38017289]
[1730711165613,0.11445367,2460.0,2459.7,4.06551]
[1730711165799,0.11445367,2460.0,2459.7,1.08091126]
[1730711166013,0.11445367,2460.0,2459.8,0.38049383]
[1730711166178,4.17949367,2460.0,2459.9,0.38049383]
[1730711167094,5.00529367,2460.0,2459.9,0.38049383]
[1730711167722,4.17949367,2460.0,2459.9,0.38049383]
[1730711168081,0.11445367,2460.0,2459.9,4.44569383]
[1730711168308,4.06462,2460.3,2460.0,0.5495]
[1730711168632,4.06462,2460.3,2460.1,0.38049383]
[1730711168922,4.06462,2460.3,2460.2,0.38049383]
[1730711169080,4.06462,2460.3,2460.0,0.5495]
[1730711169724,4.06462,2460.3,2460.1,0.38047938]
[1730711169879,8.12894,2460.4,2460.2,0.38047938]
[1730711170076,8.12894,2460.4,2460.3,0.38047938]
[1730711174119,9.790214,2460.4,2460.3,0.38047938]
[1730711174897,12.790214,2460.4,2460.3,0.38047938]
[1730711175277,7.957844,2460.4,2459.5,1.40117233]
[1730711175478,8.13106,2459.8,2459.6,1.08522181]
[1730711175718,4.06553,2459.8,2459.7,0.38065141]
[1730711176427,0.8111,2460.0,2459.5,0.5495]
[1730711176428,4.06555,2459.7,2459.5,0.5495]
[1730711176583,4.0657,2459.6,2459.5,0.5495]
[1730711176926,4.0657,2459.6,2459.5,1.63477351]
[1730711177984,4.0657,2459.6,2459.5,1.08527351]
[1730711178585,4.1777404,2459.6,2459.5,0.38067492]
[1730711180214,0.1120404,2459.6,2459.3,4.06615]
[1730711180386,0.1120404,2459.6,2459.4,3.29724034]
[1730711180583,0.1120404,2459.6,2459.4,1.15510372]
[1730711180823,4.06554,2459.7,2459.5,0.3808051]
[1730711181023,4.06554,2459.7,2459.6,0.3808051]
[1730711181196,4.0654,2459.8,2459.6,0.3808051]
[1730711181526,4.0654,2459.8,2459.7,0.3808051]
[1730711182022,8.1306,2459.9,2459.7,0.3808051]
[1730711182226,8.1306,2459.9,2459.8,0.3808051]
[1730711183698,4.06524,2459.9,2459.8,0.3808051]
[1730711184596,4.06508,2460.0,2459.8,0.3808051]
[1730711184938,4.06508,2460.0,2459.9,0.3808051]
[1730711186037,4.06495,2460.1,2459.9,0.3808051]
[1730711186239,4.06495,2460.1,2460.0,0.3808051]
[1730711187348,4.06474,2460.2,2460.0,0.38079779]
[1730711187502,4.06474,2460.2,2460.1,0.38079779]
[1730711189835,4.85694,2460.2,2460.1,0.38079779]
[1730711190943,4.06518,2460.0,2459.7,1.60639242]
[1730711191172,4.06518,2460.0,2459.8,0.38089592]
[1730711191356,4.06518,2460.0,2459.9,0.38089592]
[1730711192073,4.06493,2460.1,2459.9,0.38089592]
[1730711192279,4.06493,2460.1,2460.0,0.38089592]
[1730711193675,4.17363845,2460.1,2460.0,0.38089592]
[1730711194241,4.17363845,2460.1,2460.0,0.38088753]
[1730711196578,4.06493,2460.1,2460.0,0.38088753]
[1730711196781,4.1722093,2460.1,2460.0,0.38088753]
[1730711197387,4.1722093,2460.1,2460.0,1.08630443]
[1730711197873,4.1722093,2460.1,2460.0,0.7054169]
[1730711198079,0.1072793,2460.1,2460.0,0.38087472]
[1730711198388,0.1072793,2460.1,2460.0,0.93037472]
[1730711198544,0.1072793,2460.1,2460.0,2.56365543]
[1730711198739,0.1072793,2460.1,2460.0,3.62129451]
[1730711198945,0.1072793,2460.1,2460.0,4.47296684]
[1730711199293,4.06455,2460.3,2460.0,4.47296684]
[1730711199469,4.06452,2460.4,2460.1,2.14394314]
[1730711199654,0.10746412,2460.2,2460.1,1.05763908]
[1730711199992,4.06413,2460.6,2460.2,4.06469]
[1730711200194,4.06395,2460.7,2460.3,6.37735628]
[1730711200339,4.06395,2460.7,2460.4,2.14424545]
[1730711200546,4.06395,2460.7,2460.5,0.38083917]
[1730711200855,4.06395,2460.7,2460.6,0.38083917]
[1730711201940,4.06407,2460.6,2460.3,1.60716602]
[1730711202182,4.06407,2460.6,2460.4,0.3806038]
[1730711202368,4.06407,2460.6,2460.5,0.3806038]
[1730711203461,4.06395,2460.7,2460.5,0.3806038]
[1730711203692,4.06395,2460.7,2460.6,0.3806038]
[1730711205170,4.87068,2460.8,2460.6,0.3806038]
[1730711205401,4.87068,2460.8,2460.7,0.3806038]
[1730711205402,4.06378,2460.8,2460.7,0.3806038]
[1730711208608,4.1718438,2460.8,2460.7,0.3806038]
[1730711208907,4.1718438,2460.8,2460.7,0.38010643]
[1730711212402,4.1718438,2460.8,2460.7,0.38018298]
[1730711216217,4.1718438,2460.8,2460.4,4.61381]
[1730711216371,4.1718438,2460.8,2460.5,0.38023785]
[1730711216571,4.1718438,2460.8,2460.6,0.38023785]
[1730711216767,4.1718438,2460.8,2460.7,0.38023785]
[1730711217408,0.1080638,2460.8,2460.7,0.38023785]
[1730711218195,0.1080638,2460.8,2460.7,4.99361785]
[1730711218395,4.06313,2461.2,2460.8,4.06362]
[1730711218590,4.06296,2461.3,2461.0,0.5495]
[1730711218831,4.06291,2461.3,2461.1,0.38023785]
[1730711218994,4.06291,2461.3,2461.2,0.38023785]
[1730711219194,7.94233335,2462.0,2461.2,0.38023785]
[1730711219195,4.06269,2461.5,2461.2,0.38023785]
[1730711219538,4.06269,2461.5,2461.3,0.38023785]
[1730711219832,4.06269,2461.5,2461.1,4.06322]
[1730711220028,4.06269,2461.5,2461.4,0.38003715]
[1730711220703,4.06246,2461.6,2461.4,0.38003715]
[1730711221026,4.06246,2461.6,2461.5,0.38003715]
[1730711222523,4.06246,2461.6,2461.3,0.5495]
[1730711222720,4.06246,2461.6,2461.5,0.37981956]
[1730711222907,4.06246,2461.6,2461.3,1.417068]
[1730711223245,4.06198,2461.9,2461.3,5.56105909]
[1730711223410,0.09930597,2461.5,2461.4,4.06263]
[1730711223606,4.06224,2461.7,2461.3,5.479938]
[1730711223850,0.09861218,2461.5,2461.3,5.479808]
[1730711224038,4.06208,2461.8,2461.4,4.14396616]
[1730711224249,0.8106,2462.2,2461.6,0.5495]
[1730711224551,4.06193,2461.9,2461.6,0.5495]
[1730711224912,4.06176,2462.0,2461.6,0.5495]
[1730711225155,4.06176,2462.0,2461.6,4.61188]
[1730711225360,4.06166,2462.1,2461.7,0.70966216]
[1730711225517,4.06152,2462.2,2461.7,4.77178216]
[1730711225711,8.12305,2462.2,2461.7,4.77178216]
[1730711225953,4.06151,2462.2,2461.8,0.867568]
[1730711226272,4.06168,2462.1,2461.8,0.867568]
[1730711227314,6.50009132,2462.3,2461.9,0.5495]
[1730711227540,6.50009132,2462.3,2461.9,0.63072925]
[1730711227929,6.50009132,2462.3,2461.9,0.5495]
[1730711228114,4.06147,2462.2,2461.9,0.5495]
[1730711228675,4.06147,2462.2,2462.0,0.5479028]
[1730711228830,4.06147,2462.2,2461.9,0.5495]
[1730711229422,8.12301,2462.2,2461.9,0.5495]
[1730711229823,4.06147,2462.2,2461.9,0.5495]
[1730711230019,2.43878132,2462.3,2461.9,0.5495]
[1730711230222,2.43878132,2462.3,2462.0,4.06173]
[1730711230426,2.43878132,2462.3,2462.1,0.461123]
[1730711230832,4.06108,2462.4,2462.1,0.461123]
[1730711231046,0.7772,2462.6,2462.1,0.461123]
[1730711231352,4.0611,2462.4,2461.9,4.61125]
[1730711231525,0.7772,2462.6,2461.9,0.5495]
[1730711231526,4.06091,2462.5,2461.9,0.5495]
[1730711231732,0.7772,2462.6,2461.9,0.5495]
[1730711231733,4.06142,2462.2,2461.9,0.5495]
[1730711232832,4.06126,2462.3,2461.9,4.61137]
[1730711233683,4.06091,2462.5,2462.1,4.06147]
[1730711233971,4.06091,2462.5,2462.2,1.44302692]
[1730711234338,4.06091,2462.5,2462.2,1.361807]
[1730711234676,4.06125,2462.3,2462.0,0.5495]
[1730711234834,4.06111,2462.4,2462.0,4.61121]
[1730711235531,4.06111,2462.4,2462.0,0.5495]
[1730711236266,4.06111,2462.4,2462.0,4.61121]
[1730711238417,0.09858415,2462.3,2462.0,4.61121]
[1730711238713,4.15982415,2462.3,2462.1,0.461121]
[1730711239088,4.0614,2462.2,2462.0,0.5495]
[1730711239290,4.15985348,2462.2,2462.0,0.5495]
[1730711240723,4.06157,2462.1,2462.0,0.5495]
[1730711241027,0.09836236,2462.1,2462.0,0.5495]
[1730711241334,0.09836236,2462.1,2462.0,1.010644]
[1730711242409,4.06093,2462.5,2462.1,4.61096]
[1730711242623,4.06093,2462.5,2462.3,1.6652523]
[1730711243242,4.06093,2462.5,2462.1,6.2762123]
[1730711244436,4.06093,2462.5,2462.2,0.5495]
[1730711244734,4.06093,2462.5,2462.3,0.62762123]
[1730711245029,4.0611,2462.4,2462.2,0.5495]
[1730711245436,4.06124,2462.3,2462.0,4.010644]
[1730711245621,4.06124,2462.3,2462.0,1.010644]
[1730711246833,4.06124,2462.3,2462.0,0.5495]
[1730711247141,0.8211,2461.9,2461.5,0.84627122]
[1730711247312,4.06216,2461.8,2461.7,4.0]
[1730711247702,4.06239,2461.6,2461.5,0.84627122]
[1730711248747,4.86299,2461.6,2461.5,0.84627122]
[1730711249044,5.675456,2461.6,2461.5,0.84627122]
[1730711250650,7.06256,2461.5,2461.4,6.84e-06]
[1730711250940,4.06404,2460.6,2460.5,19.64095379]
[1730711251102,3.21605255,2460.6,2460.5,0.06095379]
[1730711251526,4.06388,2460.7,2460.5,0.06095379]
[1730711251732,4.06404,2460.6,2460.5,0.06095379]
[1730711253644,4.15689323,2460.6,2460.5,0.06095379]
[1730711255549,0.09285323,2460.6,2460.5,0.06095379]
[1730711255917,4.06404,2460.6,2460.5,0.06095379]
[1730711256243,0.09279554,2460.6,2460.5,0.61045379]
[1730711256451,4.06356,2460.9,2460.5,4.67466379]
[1730711256615,0.09279554,2460.6,2460.5,4.67466379]
[1730711256817,4.06331,2461.1,2460.6,4.06397]
[1730711257022,0.09332165,2461.0,2460.6,4.06397]
[1730711257860,0.09332165,2461.0,2460.6,4.06404]
[1730711258744,0.09332165,2461.0,2460.5,24.67799585]
[1730711258745,4.15679165,2461.0,2460.5,24.67798585]
[1730711258931,4.06362,2460.9,2460.5,20.55283206]
[1730711259265,0.7813,2461.3,2460.5,20.1295]
[1730711259266,4.06397,2460.7,2460.5,20.1295]
[1730711259464,8.22057869,2460.8,2460.5,20.1295]
[1730711259620,0.09265699,2460.6,2460.5,20.1295]
[1730711259952,0.09265699,2460.6,2460.5,0.5495]
[1730711261136,4.06381,2460.8,2460.5,0.5495]
[1730711261375,0.09265421,2460.6,2460.5,0.5495]
[1730711261556,4.06381,2460.8,2460.5,0.5495]
[1730711261859,4.15667507,2460.7,2460.3,23.64452]
[1730711263331,0.09278507,2460.7,2460.3,23.64452]
[1730711263727,4.06421,2460.5,2460.3,19.58]
[1730711264131,0.09232898,2460.4,2460.3,19.58]
[1730711265267,4.06411,2460.6,2460.3,19.58]
[1730711265567,0.09237658,2460.4,2460.3,23.64451]
[1730711265782,4.8437,2461.0,2460.4,4.06434]
[1730711266073,0.09298333,2460.9,2460.6,4.06404]
[1730711266419,0.09298333,2460.9,2460.7,0.08127235]
[1730711266529,0.09298333,2460.9,2460.6,4.61354]
[1730711266871,4.06339,2461.0,2460.7,0.461354]
[1730711267040,0.09287751,2460.8,2460.7,0.461354]
[1730711267458,4.06339,2461.0,2460.7,0.461354]
[1730711267769,4.88822,2461.2,2460.7,0.461354]
[1730711267770,0.09287751,2460.8,2460.7,0.461354]
[1730711267951,4.88822,2461.2,2460.7,4.525074]
[1730711268157,4.88825,2461.2,2460.8,0.9138504]
[1730711268333,4.06332,2461.1,2460.7,4.06386]
[1730711268530,4.06344,2461.0,2460.6,4.61351]
[1730711268731,4.15657916,2461.0,2460.6,4.61351]
[1730711269771,0.09313916,2461.0,2460.7,4.14500908]
[1730711269980,0.09313916,2461.0,2460.8,4.06363]
[1730711270264,4.06299,2461.3,2460.9,0.812737]
[1730711270265,4.06308,2461.2,2460.9,0.812737]
[1730711270480,7.94690113,2462.0,2460.9,0.812737]
[1730711270481,4.06267,2461.5,2461.0,4.61276]
[1730711270773,4.06267,2461.5,2461.0,0.5495]
[1730711270774,4.06287,2461.4,2461.0,0.5495]
[1730711271076,4.06287,2461.4,2461.1,0.5425657]
[1730711271276,4.86558,2461.6,2461.1,4.6056857]
[1730711271479,4.06236,2461.7,2461.2,4.14418753]
[1730711271639,4.06236,2461.7,2461.3,4.93778732]
[1730711271954,8.12467,2461.7,2461.3,4.0628]
[1730711272164,4.06231,2461.7,2461.3,4.0628]
[1730711272338,8.12463,2461.7,2461.3,4.0628]
[1730711273149,4.06231,2461.7,2461.3,4.0628]
[1730711273369,8.12464,2461.7,2461.1,4.06318]
[1730711273577,4.06231,2461.7,2461.2,4.91082311]
[1730711273739,4.06231,2461.7,2461.3,4.06288]
[1730711274646,4.06231,2461.7,2461.3,4.14405765]
[1730711277246,4.06206,2461.8,2461.4,4.06261]
[1730711277447,8.92717,2461.9,2461.5,0.5495]
[1730711277998,4.06202,2461.9,2461.5,4.61203]
[1730711279693,4.06207,2461.8,2461.5,0.5495]
[1730711279858,4.06202,2461.9,2461.5,0.5495]
[1730711280054,8.12405,2461.9,2461.5,1.39728311]
[1730711280265,4.06229,2461.7,2461.5,0.5495]
[1730711280492,4.06229,2461.7,2461.3,4.61233]
[1730711280867,4.06206,2461.9,2461.4,4.0627]
[1730711281089,4.06183,2462.0,2461.5,4.06255]
[1730711281257,4.83685,2462.2,2461.6,4.06239]
[1730711281596,4.06174,2462.0,2461.7,0.812494]
[1730711281752,0.7754,2462.2,2461.8,0.5495]
[1730711281954,4.06147,2462.2,2461.8,4.61156]